fUST/lending_fUST_20260623
["ID","MTS","AMOUNT","RATE_DAILY","PERIOD"]
[426162952,1782199846000,-177.309874,0.00022814,14]
[426162950,1782199846000,-840.04952,0.000228,2]
[426162931,1782199846000,-802.68415615,0.00022375,7]
[426162948,1782199846000,-500.0,0.00022759,2]
[426162928,1782199846000,-107.53264088,0.00022354,10]
[426162935,1782199846000,-500.0,0.00022464,2]
[426162933,1782199846000,-1107.67537825,0.00022375,7]
[426162946,1782199846000,-1000.0,0.00022738,2]
[426162944,1782199846000,-500.0,0.00022738,2]
[426162939,1782199846000,-500.0,0.00022485,2]
[426162937,1782199846000,-1000.0,0.00022464,2]
[426162975,1782199846000,-1000.0,0.00023012,2]
[426162954,1782199846000,-160.0,0.00022909,14]
[426162990,1782199846000,-756.48626294,0.00023132,2]
[426163013,1782199846000,-500.0,0.00023134,2]
[426162984,1782199846000,-974.56476995,0.00023132,2]
[426162988,1782199846000,-420.27014608,0.00023132,2]
[426163019,1782199846000,-10957.6673158,0.00023136,2]
[426163018,1782199846000,-1631.70070555,0.00023136,2]
[426163017,1782199846000,-11111.52688849,0.00023136,2]
[426163014,1782199846000,-500.0,0.00023134,2]
[426163009,1782199846000,-500.0,0.00023134,2]
[426163010,1782199846000,-500.0,0.00023134,2]
[426163006,1782199846000,-500.0,0.00023134,2]
[426163016,1782199846000,-500.0,0.00023134,2]
[426163015,1782199846000,-297.64717925,0.00023134,2]
[426163008,1782199846000,-500.0,0.00023134,2]
[426163004,1782199846000,-500.0,0.00023134,2]
[426163020,1782199846000,-12519.12770788,0.00023136,2]
[426163002,1782199846000,-500.0,0.00023134,2]
[426163011,1782199846000,-500.0,0.00023134,2]
[426162977,1782199846000,-1578.81643618,0.00023019,2]
[426162979,1782199846000,-500.0,0.00023033,2]
[426162981,1782199846000,-304.55149061,0.00023132,2]
[426162983,1782199846000,-548.1926831,0.00023132,2]
[426162993,1782199846000,-2101.35073038,0.00023132,2]
[426162995,1782199846000,-2190.57796165,0.00023132,2]
[426162997,1782199846000,-3022.91910669,0.00023132,2]
[426162999,1782199846000,-500.0,0.00023134,2]
[426163001,1782199846000,-282.76507697,0.00023134,2]
[426163012,1782199846000,-500.0,0.00023134,2]
[426162992,1782199846000,-1344.86446744,0.00023132,2]
[426164595,1782200455000,151.0,0.00023143,120]
[426164597,1782200495000,167.0,0.00023143,120]
[426164598,1782200541000,164.0,0.00023143,120]
[426164604,1782200710000,163.0,0.00023143,120]
[426164629,1782201031000,-162.48,0.00018884,2]
[426164627,1782201031000,-392.0469848,0.00018878,2]
[426164626,1782201031000,-2238.35,0.00016935,13]
[426164630,1782201031000,-3454.69711367,0.00019016,2]
[426164639,1782201031000,-196.49955407,0.000195,2]
[426164634,1782201031000,-183.28121644,0.00019178,7]
[426164640,1782201031000,-196.49955408,0.000195,2]
[426164637,1782201031000,-571.09760794,0.000195,2]
[426164635,1782201031000,-156.0,0.00019233,3]
[426164632,1782201031000,-178.240196,0.00019017,2]
[426164661,1782201032000,-1561.0515082,0.0002029,2]
[426164656,1782201032000,-571.09760794,0.000201,2]
[426164658,1782201032000,-20227.6494885,0.0002029,2]
[426164649,1782201032000,-584.38544742,0.00019864,2]
[426164654,1782201032000,-176.21826483,0.00020043,2]
[426164648,1782201032000,-631.60025124,0.00019864,2]
[426164651,1782201032000,-571.09760794,0.000199,2]
[426164644,1782201032000,-160.0,0.000197,2]
[426164646,1782201032000,-571.09760794,0.000197,2]
[426164642,1782201032000,-160.0,0.00019539,2]
[426164818,1782201038000,-45134.53129323,0.0002029,2]
[426164823,1782201038000,-6949.79294667,0.0002029,2]
[426164820,1782201038000,-2917.37489442,0.0002029,2]
[426164825,1782201038000,-290612.46858921,0.0002029,2]
[426165089,1782201040000,-297.21771993,0.00020289,2]
[426165415,1782201043000,-13429.38261749,0.0002029,2]
[426165410,1782201043000,-7778.05196821,0.0002029,2]
[426165408,1782201043000,-1262.99063531,0.0002029,2]
[426165406,1782201043000,-2872.44024733,0.00020289,2]
[426165812,1782201046000,-5914.80822378,0.0002029,2]
[426168724,1782201424000,316.84815262,0.00018,30]
[426168729,1782201453000,705.08187124,0.0001,7]
[426168741,1782201624000,151.0,0.00023167,120]
[426168743,1782201671000,167.24548973,0.00023167,120]
[426168744,1782201712000,164.0,0.00023167,120]
[426168769,1782201874000,163.66473412,0.00023167,120]
[426168783,1782202032000,233.7361061,0.00023167,120]
[426168872,1782202232000,-194.04439491,0.00017808,2]
[426168863,1782202232000,-184.21329258,0.00017454,13]
[426168865,1782202232000,-436.9768657,0.00017808,2]
[426168875,1782202232000,-60.45560509,0.00018881,2]
[426168874,1782202232000,-160.0,0.00018876,2]
[426168878,1782202232000,-428.91138341,0.00018881,2]
[426168881,1782202232000,-168.146129,0.00019062,2]
[426168880,1782202232000,-1980.6929874,0.00018881,2]
[426168883,1782202232000,-92.11842841,0.00019128,2]
[426169009,1782202238000,-1188.19363006,0.000199,2]
[426169018,1782202238000,-500.0,0.00019989,2]
[426169022,1782202238000,-500.0,0.00019989,2]
[426169024,1782202238000,-500.0,0.00019989,2]
[426169027,1782202238000,-500.0,0.00019989,2]
[426169029,1782202238000,-500.0,0.00019989,2]
[426169031,1782202238000,-500.0,0.00019989,2]
[426169033,1782202238000,-576.48010411,0.00019989,2]
[426169035,1782202238000,-500.0,0.00019989,2]
[426169037,1782202238000,-500.0,0.00019989,2]
[426169038,1782202238000,-393.50772709,0.00019989,2]
[426169020,1782202238000,-201.24980976,0.00019989,2]
[426169014,1782202238000,-500.0,0.00019989,2]
[426168986,1782202238000,-122.46394259,0.00019128,2]
[426169012,1782202238000,-164.15543101,0.00019989,2]
[426169011,1782202238000,-500.0,0.00019989,2]
[426169007,1782202238000,-304.5853909,0.000199,2]
[426169005,1782202238000,-231512.16893163,0.0001989,2]
[426169001,1782202238000,-237.84358328,0.000198,2]
[426168999,1782202238000,-227.48013287,0.000198,2]
[426168997,1782202238000,-180.24050735,0.000198,2]
[426169003,1782202238000,-245.04248785,0.000198,2]
[426168992,1782202238000,-160.0,0.000197,2]
[426168996,1782202238000,-304.5853909,0.000197,2]
[426169045,1782202238000,-500.0,0.00019989,2]
[426168990,1782202238000,-160.0,0.000197,2]
[426168994,1782202238000,-160.0,0.000197,2]
[426168988,1782202238000,-304.5853909,0.000196,2]
[426169016,1782202238000,-500.0,0.00019989,2]
[426169044,1782202238000,-500.0,0.00019989,2]
[426169026,1782202238000,-500.0,0.00019989,2]
[426169053,1782202238000,-500.0,0.00019989,2]
[426169098,1782202238000,-247.53636215,0.00019989,2]
[426169096,1782202238000,-500.0,0.00019989,2]
[426169094,1782202238000,-500.0,0.00019989,2]
[426169105,1782202238000,-500.0,0.00019989,2]
[426169102,1782202238000,-500.0,0.00019989,2]
[426169100,1782202238000,-500.0,0.00019989,2]
[426169090,1782202238000,-500.0,0.00019989,2]
[426169092,1782202238000,-500.0,0.00019989,2]
[426169086,1782202238000,-500.0,0.00019989,2]
[426169088,1782202238000,-500.0,0.00019989,2]
[426169082,1782202238000,-500.0,0.00019989,2]
[426169075,1782202238000,-500.0,0.00019989,2]
[426169071,1782202238000,-500.0,0.00019989,2]
[426169047,1782202238000,-504.24327438,0.00019989,2]
[426169073,1782202238000,-500.0,0.00019989,2]
[426169080,1782202238000,-500.0,0.00019989,2]
[426169079,1782202238000,-500.0,0.00019989,2]
[426169049,1782202238000,-500.0,0.00019989,2]
[426169051,1782202238000,-500.0,0.00019989,2]
[426169042,1782202238000,-173.9674402,0.00019989,2]
[426169040,1782202238000,-477.94610916,0.00019989,2]
[426169077,1782202238000,-500.0,0.00019989,2]
[426169056,1782202238000,-500.0,0.00019989,2]
[426169055,1782202238000,-500.0,0.00019989,2]
[426169067,1782202238000,-500.0,0.00019989,2]
[426169069,1782202238000,-500.0,0.00019989,2]
[426169060,1782202238000,-500.0,0.00019989,2]
[426169062,1782202238000,-500.0,0.00019989,2]
[426169066,1782202238000,-500.0,0.00019989,2]
[426169064,1782202238000,-500.0,0.00019989,2]
[426169058,1782202238000,-500.0,0.00019989,2]
[426169107,1782202239000,-264.57376932,0.00019989,2]
[426169109,1782202239000,-500.0,0.00019989,2]
[426169110,1782202239000,-500.0,0.00019989,2]
[426169114,1782202239000,-500.0,0.00019989,2]
[426169112,1782202239000,-450.0,0.00019989,2]
[426169119,1782202239000,-2725.57196112,0.0001999,2]
[426169123,1782202239000,-5568.48408978,0.0001999,2]
[426169121,1782202239000,-7031.587956,0.0001999,2]
[426169125,1782202239000,-647294.81680549,0.0001999,2]
[426169116,1782202239000,-57475.44276936,0.0001999,2]
[426169318,1782202240000,-18681.69437995,0.0001999,2]
[426170874,1782202340000,2708.3110709,0.00023167,120]
[426170875,1782202351000,200.0,0.00022418,120]
[426170908,1782202805000,151.0,0.00023155,120]
[426170910,1782202832000,200.0,0.00022592,120]
[426170911,1782202912000,164.0,0.00023155,120]
[426170913,1782202951000,200.0,0.00023043,120]
[426170936,1782203311000,200.0,0.00022479,120]
[426170948,1782203370000,200.0,0.00022061,120]
[426171032,1782203436000,-500.0,0.00019299,2]
[426171031,1782203436000,-500.0,0.00019299,2]
[426171029,1782203436000,-5000.0,0.00019106,13]
[426171036,1782203436000,-500.0,0.00019299,2]
[426171038,1782203436000,-219.98898909,0.00019299,2]
[426171034,1782203436000,-500.0,0.00019299,2]
[426171439,1782203440000,-500.0,0.00019299,2]
[426171438,1782203440000,-280.01101091,0.00019299,2]
[426171441,1782203440000,-221.68127894,0.00019299,2]
[426171448,1782203440000,-492.1635865,0.00019299,2]
[426171446,1782203440000,-380.25045029,0.00019299,2]
[426171447,1782203440000,-500.0,0.00019299,2]
[426171440,1782203440000,-500.0,0.00019299,2]
[426171450,1782203440000,-500.0,0.00019299,2]
[426171442,1782203440000,-500.0,0.00019299,2]
[426171443,1782203440000,-500.0,0.00019299,2]
[426171445,1782203440000,-500.0,0.00019299,2]
[426171444,1782203440000,-369.73360999,0.00019299,2]
[426171449,1782203440000,-500.0,0.00019299,2]
[426171458,1782203441000,-203.05692727,0.000196,2]
[426171451,1782203441000,-469.16006337,0.00019299,2]
[426171454,1782203441000,-18445.55578268,0.000193,2]
[426171460,1782203441000,-136413.33185486,0.0001969,2]
[426171453,1782203441000,-3584.02122113,0.000193,2]
[426171461,1782203441000,-980.52077879,0.0001969,2]
[426171452,1782203441000,-30.83993663,0.00019299,2]
[426171455,1782203441000,-500.0,0.00019573,2]
[426171457,1782203441000,-509.50216706,0.00019573,2]
[426171456,1782203441000,-197.26958726,0.00019573,2]
[426171459,1782203441000,-159.28368088,0.00019615,2]
[426171478,1782203443000,-11361.66267079,0.0001969,2]
[426171477,1782203443000,-8272.144331,0.0001969,2]
[426171516,1782203447000,-500.0,0.00019299,2]
[426171517,1782203447000,-500.0,0.00019573,2]
[426171515,1782203447000,-500.0,0.00019299,2]
[426171519,1782203447000,-27082.77046072,0.0001969,2]
[426171520,1782203447000,-2230.69998992,0.0001969,2]
[426171521,1782203447000,-34406.71380548,0.0001969,2]
[426171518,1782203447000,-500.0,0.00019573,2]
[426171835,1782203551000,200.0,0.00022162,120]
[426171847,1782204062000,151.0,0.00023153,120]
[426171851,1782204172000,164.0,0.00023153,120]
[426171954,1782204632000,-300.0,0.00017174,2]
[426171964,1782204632000,-12.12031056,0.00017174,2]
[426171962,1782204632000,-287.87968944,0.00017174,2]
[426171960,1782204632000,-300.0,0.00017174,2]
[426171958,1782204632000,-300.0,0.00017174,2]
[426171956,1782204632000,-300.0,0.00017174,2]
[426171952,1782204632000,-205.64381689,0.00017174,2]
[426171948,1782204632000,-300.0,0.00017174,2]
[426171929,1782204632000,-5000.0,0.00016669,13]
[426171950,1782204632000,-94.35618311,0.00017174,2]
[426171941,1782204632000,-593.04745821,0.00016838,2]
[426171945,1782204632000,-1333.0224242,0.00016838,2]
[426171938,1782204632000,-333.58919525,0.00016838,2]
[426171936,1782204632000,-185.32733069,0.00016838,2]
[426171934,1782204632000,-232.10208656,0.00016837,2]
[426171932,1782204632000,-67.89791344,0.00016837,2]
[426171966,1782204632000,-300.0,0.00017174,2]
[426171943,1782204632000,-926.63665346,0.00016838,2]
[426171967,1782204632000,-300.0,0.00017174,2]
[426171972,1782204632000,-300.0,0.00017174,2]
[426171970,1782204632000,-60.84773825,0.00017174,2]
[426172008,1782204632000,-1246.28700775,0.00017724,2]
[426172006,1782204632000,-2195.70502325,0.00017724,2]
[426172000,1782204632000,-382.85008675,0.00017724,2]
[426171998,1782204632000,-157.28354601,0.00017724,2]
[426171990,1782204632000,-358.13265417,0.00017724,2]
[426171991,1782204632000,-644.6387775,0.00017724,2]
[426171988,1782204632000,-153.36116114,0.00017723,2]
[426171968,1782204632000,-300.0,0.00017174,2]
[426171996,1782204632000,-1633.37972482,0.00017724,2]
[426171986,1782204632000,-413.5201421,0.00017723,2]
[426171994,1782204632000,-1146.02449333,0.00017724,2]
[426171982,1782204632000,-358.15648646,0.00017723,2]
[426171980,1782204632000,-600.0,0.00017516,2]
[426171978,1782204632000,-1429.57437518,0.00017313,2]
[426171976,1782204632000,-300.0,0.00017174,2]
[426171974,1782204632000,-300.0,0.00017174,2]
[426171969,1782204632000,-300.0,0.00017174,2]
[426171971,1782204632000,-239.15226175,0.00017174,2]
[426171984,1782204632000,-141.84351354,0.00017723,2]
[426172073,1782204638000,-229.3872888,0.00017724,2]
[426172071,1782204638000,-2259.90330307,0.00017724,2]
[426172070,1782204638000,-500.0,0.00017723,2]
[426172072,1782204638000,-200.7138777,0.00017724,2]
[426172074,1782204638000,-358.41763875,0.00017724,2]
[426172075,1782204638000,-515.6052784,0.00017724,2]
[426172077,1782204638000,-1985.77103712,0.00017754,2]
[426172082,1782204638000,-260.25032999,0.00018508,7]
[426172076,1782204638000,-913.57261328,0.00017754,2]
[426172079,1782204638000,-500.0,0.00017997,2]
[426172081,1782204638000,-500.0,0.00018271,2]
[426172080,1782204638000,-512.32324247,0.00017997,2]
[426172083,1782204638000,-155.54626139,0.00018508,7]
[426172078,1782204638000,-3309.85101351,0.00017897,2]
[426172101,1782204639000,-514.60425226,0.00018656,2]
[426172096,1782204639000,-199.32437332,0.00018656,2]
[426172099,1782204639000,-513.31388399,0.00018656,2]
[426172097,1782204639000,-517.06651606,0.00018656,2]
[426172098,1782204639000,-927.86,0.00018656,2]
[426172094,1782204639000,-500.0,0.00018656,2]
[426172095,1782204639000,-500.0,0.00018656,2]
[426172093,1782204639000,-500.0,0.00018656,2]
[426172089,1782204639000,-500.0,0.00018656,2]
[426172092,1782204639000,-500.0,0.00018656,2]
[426172102,1782204639000,-500.0,0.00018656,2]
[426172087,1782204639000,-500.0,0.00018656,2]
[426172088,1782204639000,-502.34400274,0.00018656,2]
[426172090,1782204639000,-500.0,0.00018656,2]
[426172085,1782204639000,-523.52077079,0.00018656,2]
[426172084,1782204639000,-597.19189857,0.00018545,2]
[426172086,1782204639000,-500.0,0.00018656,2]
[426172091,1782204639000,-642.9,0.00018656,2]
[426172105,1782204639000,-1000.0,0.00018656,2]
[426172100,1782204639000,-523.47205526,0.00018656,2]
[426172106,1782204639000,-179.79200058,0.00018657,2]
[426172124,1782204639000,-24053.22315185,0.00019099,2]
[426172125,1782204639000,-594.82166618,0.00019099,2]
[426172121,1782204639000,-229.375,0.00018986,2]
[426172123,1782204639000,-7641.74315993,0.00019099,2]
[426172104,1782204639000,-500.0,0.00018656,2]
[426172122,1782204639000,-189.607,0.00018986,2]
[426172120,1782204639000,-1000.0,0.0001893,2]
[426172116,1782204639000,-500.0,0.0001893,2]
[426172118,1782204639000,-600.85980019,0.0001893,2]
[426172117,1782204639000,-927.86,0.0001893,2]
[426172119,1782204639000,-500.0,0.0001893,2]
[426172111,1782204639000,-500.0,0.0001893,2]
[426172112,1782204639000,-642.9,0.0001893,2]
[426172108,1782204639000,-1253.65725689,0.00018896,7]
[426172107,1782204639000,-260.25032999,0.00018878,7]
[426172110,1782204639000,-400.84557689,0.0001893,2]
[426172103,1782204639000,-500.0,0.00018656,2]
[426172109,1782204639000,-500.0,0.0001893,2]
[426172114,1782204639000,-500.0,0.0001893,2]
[426172115,1782204639000,-500.0,0.0001893,2]
[426172113,1782204639000,-500.0,0.0001893,2]
[426172133,1782204648000,-377.05,0.0001893,2]
[426172131,1782204648000,-343.0,0.00018656,2]
[426172132,1782204648000,-157.0,0.00018656,2]
[426173095,1782205311000,-212.92533927,0.00016838,2]
[426173143,1782205328000,-243.34324488,0.00016838,2]
[426173145,1782205345000,-380.22382013,0.00016838,2]
[426173179,1782205361000,151.0,0.00023158,120]
[426173178,1782205361000,-156.404,0.00016738,2]
[426173386,1782205832000,-320.69026308,0.00016923,2]
[426173456,1782205838000,-3823.43224706,0.00017074,2]
[426173460,1782205838000,-1000.0,0.00017625,2]
[426173464,1782205838000,-500.0,0.00017723,2]
[426173454,1782205838000,-2923.86707462,0.00017074,2]
[426173442,1782205838000,-1632.34894362,0.00017074,2]
[426173440,1782205838000,-226.23579198,0.00016923,2]
[426173458,1782205838000,-168.098654,0.000175,2]
[426173462,1782205838000,-500.0,0.00017723,2]
[426173474,1782205838000,-215.64039301,0.00017723,2]
[426173468,1782205838000,-500.0,0.00017723,2]
[426173483,1782205838000,-1010.42471202,0.00017975,2]
[426173486,1782205838000,-674.3126716,0.00017975,2]
[426173481,1782205838000,-180.21,0.00017933,2]
[426173466,1782205838000,-500.0,0.00017723,2]
[426173477,1782205838000,-1256.27641545,0.00017808,2]
[426173470,1782205838000,-500.0,0.00017723,2]
[426173472,1782205838000,-500.0,0.00017723,2]
[426173479,1782205838000,-773.93049626,0.00017856,2]
[426173745,1782205840000,-379.24695453,0.00017975,2]
[426173737,1782205840000,-832.13529868,0.00017975,2]
[426173755,1782205840000,-21.26191724,0.00017997,2]
[426173753,1782205840000,-228.73918276,0.00017997,2]
[426173757,1782205840000,-525.75847193,0.00017997,2]
[426173761,1782205840000,-157.84,0.00018047,2]
[426173759,1782205840000,-154.93,0.0001804,2]
[426173747,1782205840000,-157.4,0.00017984,2]
[426173763,1782205840000,-179.42,0.0001806,2]
[426173751,1782205840000,-500.0,0.00017997,2]
[426173769,1782205840000,-161.06670585,0.00018074,2]
[426173749,1782205840000,-500.0,0.00017997,2]
[426173786,1782205840000,-115.49109577,0.00018075,2]
[426173780,1782205840000,-500.0,0.00018074,2]
[426173784,1782205840000,-1514.67,0.00018074,2]
[426173778,1782205840000,-464.36632419,0.00018074,2]
[426173782,1782205840000,-500.0,0.00018074,2]
[426173766,1782205840000,-338.93329415,0.00018074,2]
[426173771,1782205840000,-500.0,0.00018074,2]
[426173773,1782205840000,-213.75026416,0.00018074,2]
[426173775,1782205840000,-35.63367581,0.00018074,2]
[426174133,1782205843000,-500.0,0.00018075,2]
[426174124,1782205843000,-500.0,0.00018075,2]
[426174127,1782205843000,-500.0,0.00018075,2]
[426174129,1782205843000,-500.0,0.00018075,2]
[426174131,1782205843000,-500.0,0.00018075,2]
[426174137,1782205843000,-43.06799689,0.00018075,2]
[426174139,1782205843000,-500.0,0.00018075,2]
[426174147,1782205843000,-500.0,0.00018075,2]
[426174142,1782205843000,-529.4049909,0.00018075,2]
[426174148,1782205843000,-500.0,0.00018075,2]
[426174150,1782205843000,-500.0,0.00018075,2]
[426174141,1782205843000,-500.0,0.00018075,2]
[426174126,1782205843000,-618.36638402,0.00018075,2]
[426174135,1782205843000,-456.93200311,0.00018075,2]
[426174116,1782205843000,-678.67875918,0.00018075,2]
[426174096,1782205843000,-500.0,0.00018075,2]
[426174122,1782205843000,-59.12370787,0.00018075,2]
[426174090,1782205843000,-500.0,0.00018075,2]
[426174088,1782205843000,-384.50890423,0.00018075,2]
[426174144,1782205843000,-524.29841156,0.00018075,2]
[426174092,1782205843000,-581.91926341,0.00018075,2]
[426174094,1782205843000,-15.17244796,0.00018075,2]
[426174098,1782205843000,-500.0,0.00018075,2]
[426174100,1782205843000,-282.04086204,0.00018075,2]
[426174102,1782205843000,-217.95913796,0.00018075,2]
[426174104,1782205843000,-500.0,0.00018075,2]
[426174106,1782205843000,-688.38788204,0.00018075,2]
[426174109,1782205843000,-466.83211796,0.00018075,2]
[426174114,1782205843000,-500.0,0.00018075,2]
[426174112,1782205843000,-508.32769796,0.00018075,2]
[426174111,1782205843000,-500.0,0.00018075,2]
[426174120,1782205843000,-244.93715842,0.00018075,2]
[426174118,1782205843000,-321.32124082,0.00018075,2]
[426174154,1782205843000,-555.43025528,0.00018075,2]
[426174167,1782205843000,-500.0,0.00018075,2]
[426174156,1782205843000,-450.0,0.00018075,2]
[426174205,1782205843000,-300.0,0.00018076,2]
[426174202,1782205843000,-300.0,0.00018076,2]
[426174203,1782205843000,-300.0,0.00018076,2]
[426174200,1782205843000,-300.0,0.00018076,2]
[426174209,1782205843000,-300.0,0.00018076,2]
[426174219,1782205843000,-500.0,0.00018348,2]
[426174193,1782205843000,-300.0,0.00018076,2]
[426174207,1782205843000,-300.0,0.00018076,2]
[426174222,1782205843000,-500.0,0.00018348,2]
[426174224,1782205843000,-500.0,0.00018348,2]
[426174217,1782205843000,-187.57,0.00018112,2]
[426174212,1782205843000,-300.0,0.00018076,2]
[426174226,1782205843000,-500.0,0.00018348,2]
[426174228,1782205843000,-401.39698092,0.00018348,2]
[426174158,1782205843000,-500.0,0.00018075,2]
[426174189,1782205843000,-300.0,0.00018076,2]
[426174213,1782205843000,-160.14,0.00018112,2]
[426174198,1782205843000,-300.0,0.00018076,2]
[426174191,1782205843000,-300.0,0.00018076,2]
[426174153,1782205843000,-512.47562193,0.00018075,2]
[426174160,1782205843000,-500.0,0.00018075,2]
[426174172,1782205843000,-500.0,0.00018075,2]
[426174163,1782205843000,-500.0,0.00018075,2]
[426174168,1782205843000,-509.72911745,0.00018075,2]
[426174164,1782205843000,-500.0,0.00018075,2]
[426174174,1782205843000,-500.0,0.00018075,2]
[426174176,1782205843000,-500.0,0.00018075,2]
[426174181,1782205843000,-617.94562733,0.00018075,2]
[426174178,1782205843000,-500.0,0.00018075,2]
[426174183,1782205843000,-300.0,0.00018076,2]
[426174185,1782205843000,-300.0,0.00018076,2]
[426174196,1782205843000,-300.0,0.00018076,2]
[426174170,1782205843000,-500.0,0.00018075,2]
[426174187,1782205843000,-300.0,0.00018076,2]
[426174582,1782205846000,-500.0,0.00018349,2]
[426174584,1782205846000,-500.0,0.00018349,2]
[426174595,1782205846000,-500.0,0.00018349,2]
[426174594,1782205846000,-500.0,0.00018349,2]
[426174580,1782205846000,-500.0,0.00018349,2]
[426174592,1782205846000,-500.0,0.00018349,2]
[426174577,1782205846000,-500.0,0.00018349,2]
[426174578,1782205846000,-500.0,0.00018349,2]
[426174563,1782205846000,-151.71,0.00018349,2]
[426174531,1782205846000,-859.89698092,0.00018348,2]
[426174561,1782205846000,-115.1332723,0.00018349,2]
[426174573,1782205846000,-500.0,0.00018349,2]
[426174569,1782205846000,-500.0,0.00018349,2]
[426174571,1782205846000,-500.0,0.00018349,2]
[426174567,1782205846000,-1155.22,0.00018349,2]
[426174534,1782205846000,-379.57039506,0.00018348,2]
[426174529,1782205846000,-98.60301908,0.00018348,2]
[426174539,1782205846000,-275.20262402,0.00018348,2]
[426174541,1782205846000,-384.8667277,0.00018349,2]
[426174565,1782205846000,-500.0,0.00018349,2]
[426174588,1782205846000,-500.0,0.00018349,2]
[426174575,1782205846000,-240.0,0.00018349,2]
[426174586,1782205846000,-500.0,0.00018349,2]
[426174630,1782205846000,-268.53607287,0.00018529,2]
[426174628,1782205846000,-500.0,0.00018529,2]
[426174632,1782205846000,-125041.8342134,0.0001853,2]
[426174626,1782205846000,-500.0,0.00018529,2]
[426174636,1782205846000,-528.01737883,0.0001853,2]
[426174634,1782205846000,-11364.9534313,0.0001853,2]
[426174624,1782205846000,-644.96884053,0.00018529,2]
[426174622,1782205846000,-500.0,0.00018529,2]
[426174617,1782205846000,-500.0,0.00018529,2]
[426174611,1782205846000,-500.0,0.00018529,2]
[426174613,1782205846000,-500.0,0.00018529,2]
[426174619,1782205846000,-500.0,0.00018529,2]
[426174607,1782205846000,-500.0,0.00018349,2]
[426174602,1782205846000,-482.85248241,0.00018349,2]
[426174609,1782205846000,-600.0,0.00018437,2]
[426174605,1782205846000,-500.0,0.00018349,2]
[426174603,1782205846000,-500.0,0.00018349,2]
[426174599,1782205846000,-17.14751759,0.00018349,2]
[426174597,1782205846000,-500.0,0.00018349,2]
[426174615,1782205846000,-500.0,0.00018529,2]
[426174590,1782205846000,-500.0,0.00018349,2]
[426178001,1782205944000,163.83546333,0.00023158,120]
[426178002,1782205945000,163.83546333,0.00023158,120]
[426178003,1782205945000,163.83546333,0.00023158,120]
[426178338,1782206580000,151.0,0.00023158,120]
[426178364,1782207031000,-26.0920499,0.00017237,2]
[426178365,1782207031000,-566.89708643,0.00017237,2]
[426178363,1782207031000,-288.85077589,0.00017237,2]
[426178367,1782207032000,-1066.56278393,0.00017237,2]
[426178366,1782207032000,-1007.81704254,0.00017237,2]
[426178664,1782207038000,-1301.78720985,0.00018144,2]
[426178657,1782207038000,-500.0,0.00018075,2]
[426178659,1782207038000,-500.0,0.00018075,2]
[426178663,1782207038000,-833.1438143,0.00018144,2]
[426178665,1782207038000,-1872.6990086,0.00018144,2]
[426178666,1782207038000,-101.48765981,0.00018346,2]
[426178676,1782207038000,-500.0,0.00018347,2]
[426178668,1782207038000,-284.71,0.00018347,2]
[426178670,1782207038000,-513.87347527,0.00018347,2]
[426178671,1782207038000,-500.0,0.00018347,2]
[426178661,1782207038000,-260.35744197,0.00018144,2]
[426178675,1782207038000,-500.0,0.00018347,2]
[426178669,1782207038000,-500.0,0.00018347,2]
[426178673,1782207038000,-500.0,0.00018347,2]
[426178672,1782207038000,-509.87088707,0.00018347,2]
[426178667,1782207038000,-94.58041168,0.00018346,2]
[426178660,1782207038000,-500.0,0.00018075,2]